[Event "*** Titled Tuesday Blitz"]
[Site "Chess.com"]
[Date "2020.05.26"]
[Round "4"]
[White "ViktoriyaTarasova"]
[Black "mortngabriel"]
[Result "0-1"]
[WhiteElo "2268"]
[BlackElo "2444"]
[TimeControl "180+1"]
[EndTime "10:39:23 PDT"]
[Termination "mortngabriel won by resignation"]

1. d4 {[%clk 0:03:00.9]} 1... Nf6 {[%clk 0:02:56.8]} 2. c4 {[%clk 0:03:00.3]}
2... e6 {[%clk 0:02:56.4]} 3. Nc3 {[%clk 0:02:59.8]} 3... Bb4 {[%clk 0:02:56.7]}
4. Qc2 {[%clk 0:02:59.4]} 4... O-O {[%clk 0:02:56.5]} 5. Nf3 {[%clk 0:02:58.6]}
5... c5 {[%clk 0:02:55.1]} 6. dxc5 {[%clk 0:02:57.7]} 6... Na6 {[%clk
0:02:55.7]} 7. g3 {[%clk 0:02:57.3]} 7... Nxc5 {[%clk 0:02:55]} 8. Bg2 {[%clk
0:02:57.8]} 8... Nce4 {[%clk 0:02:54.8]} 9. O-O {[%clk 0:02:57.9]} 9... Nxc3
{[%clk 0:02:55.1]} 10. bxc3 {[%clk 0:02:58.4]} 10... Be7 {[%clk 0:02:56]} 11. e4
{[%clk 0:02:58.5]} 11... d6 {[%clk 0:02:56.9]} 12. e5 {[%clk 0:02:59.1]} 12...
dxe5 {[%clk 0:02:57.8]} 13. Nxe5 {[%clk 0:02:59.3]} 13... Qc7 {[%clk 0:02:58]}
14. Qe2 {[%clk 0:02:58.3]} 14... Bd6 {[%clk 0:02:57]} 15. Bf4 {[%clk 0:02:46.7]}
15... g5 {[%clk 0:02:48.7]} 16. c5 {[%clk 0:02:46.6]} 16... Qxc5 {[%clk
0:02:43.2]} 17. Nd3 {[%clk 0:02:39.6]} 17... Qc7 {[%clk 0:02:08.6]} 18. Bxg5
{[%clk 0:02:39.5]} 18... Be7 {[%clk 0:02:06.6]} 19. Rac1 {[%clk 0:02:26.8]}
19... Bd7 {[%clk 0:01:51]} 20. Ne5 {[%clk 0:02:26.3]} 20... Bc6 {[%clk
0:01:48.6]} 21. Nxc6 {[%clk 0:02:25]} 21... bxc6 {[%clk 0:01:49.5]} 22. Bh6
{[%clk 0:02:11.1]} 22... Rfd8 {[%clk 0:01:44.3]} 23. Rfd1 {[%clk 0:02:10.5]}
23... Rac8 {[%clk 0:01:30.7]} 24. h3 {[%clk 0:02:05.3]} 24... c5 {[%clk
0:01:08.6]} 25. Qe3 {[%clk 0:01:58.1]} 25... Nd5 {[%clk 0:00:57.2]} 26. Bxd5
{[%clk 0:01:35.7]} 26... Rxd5 {[%clk 0:00:56.7]} 27. Rxd5 {[%clk 0:01:33.7]}
27... exd5 {[%clk 0:00:57.6]} 28. Qf3 {[%clk 0:01:33.5]} 28... Qc6 {[%clk
0:00:52]} 29. Bf4 {[%clk 0:01:27.5]} 29... Qe6 {[%clk 0:00:48.9]} 30. Kg2 {[%clk
0:01:20.2]} 30... Bf6 {[%clk 0:00:47.1]} 31. Qh5 {[%clk 0:01:13.8]} 31... Bg7
{[%clk 0:00:42.3]} 32. Bd2 {[%clk 0:01:08.1]} 32... Qe4+ {[%clk 0:00:33.3]} 33.
Kg1 {[%clk 0:00:49.2]} 33... Qd3 {[%clk 0:00:32.6]} 34. Qg4 {[%clk 0:00:43.5]}
34... Re8 {[%clk 0:00:26.8]} 35. Be3 {[%clk 0:00:33.6]} 35... Rxe3 {[%clk
0:00:22.7]} 36. Rd1 {[%clk 0:00:32.9]} 36... Qxc3 {[%clk 0:00:15.1]} 37. fxe3
{[%clk 0:00:20.5]} 37... Qxe3+ {[%clk 0:00:16]} 38. Kf1 {[%clk 0:00:20]} 38...
d4 {[%clk 0:00:15.7]} 39. Re1 {[%clk 0:00:19.3]} 39... Qd3+ {[%clk 0:00:15.1]}
40. Kg1 {[%clk 0:00:19.7]} 40... h6 {[%clk 0:00:13.8]} 41. Re8+ {[%clk
0:00:17.2]} 41... Kh7 {[%clk 0:00:13.5]} 42. Re1 {[%clk 0:00:17.7]} 42... c4
{[%clk 0:00:13.1]} 43. Qf4 {[%clk 0:00:17.8]} 43... c3 {[%clk 0:00:10.9]} 44.
Qxf7 {[%clk 0:00:17]} 44... Qxg3+ {[%clk 0:00:10.3]} 45. Kf1 {[%clk 0:00:16.4]}
45... Qxh3+ {[%clk 0:00:10.8]} 46. Ke2 {[%clk 0:00:16.4]} 46... d3+ {[%clk
0:00:09.9]} 47. Kf2 {[%clk 0:00:16.3]} 47... Qh2+ {[%clk 0:00:09.3]} 48. Kf1
{[%clk 0:00:16.4]} 48... Qh3+ {[%clk 0:00:07.1]} 49. Kf2 {[%clk 0:00:16.4]}
49... d2 {[%clk 0:00:08]} 50. Re7 {[%clk 0:00:14.7]} 50... Qh4+ {[%clk
0:00:06.2]} 51. Kg2 {[%clk 0:00:13.9]} 51... Qg5+ {[%clk 0:00:06.1]} 52. Kf2
{[%clk 0:00:13.5]} 52... d1=Q {[%clk 0:00:06.6]} 0-1

[Event "*** Titled Tuesday Blitz"]
[Site "Chess.com"]
[Date "2020.05.26"]
[Round "4"]
[White "atwalcb"]
[Black "Vandros57"]
[Result "1-0"]
[WhiteElo "2404"]
[BlackElo "2181"]
[TimeControl "180+1"]
[EndTime "10:39:23 PDT"]
[Termination "atwalcb won on time"]

1. d4 {[%clk 0:03:00.9]} 1... d5 {[%clk 0:02:59]} 2. Nf3 {[%clk 0:02:47.5]} 2...
Nf6 {[%clk 0:02:57.8]} 3. c4 {[%clk 0:02:45.6]} 3... e6 {[%clk 0:02:56.7]} 4. g3
{[%clk 0:02:43.8]} 4... Bb4+ {[%clk 0:02:52.4]} 5. Bd2 {[%clk 0:02:40.1]} 5...
Be7 {[%clk 0:02:51.1]} 6. Bg2 {[%clk 0:02:34.7]} 6... O-O {[%clk 0:02:50.3]} 7.
Qc2 {[%clk 0:02:32.1]} 7... Ne4 {[%clk 0:02:35.7]} 8. O-O {[%clk 0:02:30.6]}
8... Nxd2 {[%clk 0:02:33.3]} 9. Nbxd2 {[%clk 0:02:25.8]} 9... Nd7 {[%clk
0:02:24.7]} 10. e4 {[%clk 0:02:24.2]} 10... dxe4 {[%clk 0:02:20.6]} 11. Nxe4
{[%clk 0:02:23.1]} 11... Nf6 {[%clk 0:02:19.1]} 12. Rfd1 {[%clk 0:02:22.3]}
12... c6 {[%clk 0:02:14.9]} 13. h4 {[%clk 0:01:55.3]} 13... h6 {[%clk
0:02:13.4]} 14. Ne5 {[%clk 0:01:51.5]} 14... Qb6 {[%clk 0:02:08.5]} 15. c5
{[%clk 0:01:40.4]} 15... Qc7 {[%clk 0:02:06.5]} 16. Nc4 {[%clk 0:01:35.3]} 16...
Rd8 {[%clk 0:02:03.1]} 17. Ncd6 {[%clk 0:01:29.6]} 17... Bxd6 {[%clk 0:02:01.6]}
18. Nxd6 {[%clk 0:01:27.9]} 18... Rxd6 {[%clk 0:02:01]} 19. cxd6 {[%clk
0:01:27.5]} 19... Qxd6 {[%clk 0:02:00.8]} 20. Qc5 {[%clk 0:01:24.9]} 20... Qd8
{[%clk 0:01:56.1]} 21. b4 {[%clk 0:01:19.9]} 21... a6 {[%clk 0:01:45.3]} 22. a4
{[%clk 0:01:16.2]} 22... Nd5 {[%clk 0:01:39.7]} 23. Bxd5 {[%clk 0:01:12.8]}
23... exd5 {[%clk 0:01:38.7]} 24. Re1 {[%clk 0:01:10.8]} 24... Be6 {[%clk
0:01:37.8]} 25. b5 {[%clk 0:01:05.3]} 25... axb5 {[%clk 0:01:36.8]} 26. axb5
{[%clk 0:01:04.3]} 26... Rxa1 {[%clk 0:01:36]} 27. Rxa1 {[%clk 0:01:03.6]} 27...
g5 {[%clk 0:01:28.4]} 28. bxc6 {[%clk 0:01:00.5]} 28... bxc6 {[%clk 0:01:27.4]}
29. Qxc6 {[%clk 0:00:58.5]} 29... Qf6 {[%clk 0:01:24.5]} 30. hxg5 {[%clk
0:00:52.8]} 30... hxg5 {[%clk 0:01:09.5]} 31. Ra8+ {[%clk 0:00:37]} 31... Kg7
{[%clk 0:01:08.7]} 32. Qc3 {[%clk 0:00:36.6]} 32... Qf5 {[%clk 0:00:59.7]} 33.
Qe3 {[%clk 0:00:26]} 33... Qb1+ {[%clk 0:00:43.4]} 34. Kg2 {[%clk 0:00:26.3]}
34... Bf5 {[%clk 0:00:31.2]} 35. Qxg5+ {[%clk 0:00:25.5]} 35... Bg6 {[%clk
0:00:29.2]} 36. Qe5+ {[%clk 0:00:25.2]} 36... f6 {[%clk 0:00:23.7]} 37. Qe7+
{[%clk 0:00:23.2]} 37... Kh6 {[%clk 0:00:19.5]} 38. Rh8+ {[%clk 0:00:21.4]}
38... Kg5 {[%clk 0:00:18]} 39. f4+ {[%clk 0:00:20.1]} 39... Kf5 {[%clk
0:00:14.4]} 40. Qe2 {[%clk 0:00:15.5]} 40... Qe4+ {[%clk 0:00:10.9]} 41. Qxe4+
{[%clk 0:00:14.9]} 41... Kxe4 {[%clk 0:00:10.7]} 42. Kf2 {[%clk 0:00:14.5]}
42... Kxd4 {[%clk 0:00:10.1]} 43. Rh6 {[%clk 0:00:14.7]} 43... Be4 {[%clk
0:00:08.7]} 44. Rxf6 {[%clk 0:00:14.9]} 44... Kc3 {[%clk 0:00:08.8]} 45. Re6
{[%clk 0:00:14.5]} 45... Bf5 {[%clk 0:00:07.8]} 46. Re5 {[%clk 0:00:14.9]} 46...
Be4 {[%clk 0:00:07]} 47. f5 {[%clk 0:00:15.3]} 47... Kd4 {[%clk 0:00:06.6]} 48.
Rxe4+ {[%clk 0:00:13.1]} 48... dxe4 {[%clk 0:00:05.6]} 49. f6 {[%clk 0:00:13.4]}
49... Kd3 {[%clk 0:00:05.1]} 50. Ke1 {[%clk 0:00:13.8]} 50... e3 {[%clk
0:00:04.4]} 51. f7 {[%clk 0:00:14.3]} 51... e2 {[%clk 0:00:04.3]} 52. f8=Q
{[%clk 0:00:14.8]} 1-0

[Event "*** Titled Tuesday Blitz"]
[Site "Chess.com"]
[Date "2020.05.26"]
[Round "4"]
[White "RitvarsReimanis"]
[Black "Bubachess1608"]
[Result "1-0"]
[WhiteElo "2484"]
[BlackElo "2300"]
[TimeControl "180+1"]
[EndTime "10:39:24 PDT"]
[Termination "RitvarsReimanis won on time"]

1. d4 {[%clk 0:03:00.9]} 1... Nf6 {[%clk 0:02:58.4]} 2. c4 {[%clk 0:02:59]} 2...
e6 {[%clk 0:02:58.1]} 3. Nf3 {[%clk 0:02:58.4]} 3... c5 {[%clk 0:02:57.9]} 4. d5
{[%clk 0:02:58.2]} 4... exd5 {[%clk 0:02:58]} 5. cxd5 {[%clk 0:02:59.1]} 5... d6
{[%clk 0:02:58.3]} 6. Nc3 {[%clk 0:02:59.3]} 6... g6 {[%clk 0:02:57.8]} 7. e4
{[%clk 0:02:59.5]} 7... Bg4 {[%clk 0:02:57.4]} 8. Qb3 {[%clk 0:02:54.8]} 8...
Qb6 {[%clk 0:02:35.8]} 9. Nd2 {[%clk 0:02:46.4]} 9... Qxb3 {[%clk 0:02:32.8]}
10. axb3 {[%clk 0:02:43.1]} 10... Bd7 {[%clk 0:02:16.3]} 11. Nc4 {[%clk
0:02:41.9]} 11... Na6 {[%clk 0:02:07.4]} 12. Bg5 {[%clk 0:02:32.4]} 12... Ng4
{[%clk 0:01:57.5]} 13. h3 {[%clk 0:02:20.7]} 13... f6 {[%clk 0:01:52.7]} 14. Bd2
{[%clk 0:01:57]} 14... Ne5 {[%clk 0:01:50.4]} 15. Nxe5 {[%clk 0:01:52.8]} 15...
fxe5 {[%clk 0:01:47.8]} 16. Rxa6 {[%clk 0:01:53.1]} 16... bxa6 {[%clk 0:01:42]}
17. Bxa6 {[%clk 0:01:54]} 17... Be7 {[%clk 0:01:39.9]} 18. Ke2 {[%clk
0:01:51.3]} 18... O-O {[%clk 0:01:38.3]} 19. Ra1 {[%clk 0:01:43.7]} 19... Rab8
{[%clk 0:01:36]} 20. Bc4 {[%clk 0:01:42.9]} 20... Rb7 {[%clk 0:01:35.7]} 21. Ra6
{[%clk 0:01:36.5]} 21... Rfb8 {[%clk 0:01:23.5]} 22. f4 {[%clk 0:01:33]} 22...
exf4 {[%clk 0:01:00.2]} 23. Bxf4 {[%clk 0:01:28.5]} 23... Kg7 {[%clk 0:00:58.9]}
24. Bxd6 {[%clk 0:01:22.3]} 24... Bxd6 {[%clk 0:00:58.5]} 25. Rxd6 {[%clk
0:01:23.2]} 25... Re8 {[%clk 0:00:54.1]} 26. Kd3 {[%clk 0:01:19.2]} 26... Bc8
{[%clk 0:00:50.7]} 27. Rc6 {[%clk 0:01:09.7]} 27... Rf7 {[%clk 0:00:46.6]} 28.
Rxc5 {[%clk 0:00:54.1]} 28... Rf2 {[%clk 0:00:45.7]} 29. e5 {[%clk 0:00:46.9]}
29... Bf5+ {[%clk 0:00:36.5]} 30. Ke3 {[%clk 0:00:42]} 30... Rxg2 {[%clk
0:00:36]} 31. Rc7+ {[%clk 0:00:41.7]} 31... Kh6 {[%clk 0:00:34.6]} 32. e6 {[%clk
0:00:41]} 32... Rxb2 {[%clk 0:00:30.5]} 33. Nb5 {[%clk 0:00:36.9]} 33... Bxh3
{[%clk 0:00:20.3]} 34. Nd6 {[%clk 0:00:36.1]} 34... Rf8 {[%clk 0:00:19.9]} 35.
e7 {[%clk 0:00:33.1]} 35... Rb8 {[%clk 0:00:18.9]} 36. e8=Q {[%clk 0:00:29.9]}
36... Rxe8+ {[%clk 0:00:18.3]} 37. Nxe8 {[%clk 0:00:30.8]} 37... Bf5 {[%clk
0:00:16.2]} 38. Nd6 {[%clk 0:00:27.1]} 38... a5 {[%clk 0:00:14.2]} 39. Ra7
{[%clk 0:00:24.8]} 39... Kg5 {[%clk 0:00:13]} 40. Rxh7 {[%clk 0:00:21.9]} 40...
a4 {[%clk 0:00:11.5]} 41. bxa4 {[%clk 0:00:18.3]} 41... Kf6 {[%clk 0:00:11.8]}
42. Kd4 {[%clk 0:00:15.6]} 42... Rd2+ {[%clk 0:00:09.5]} 43. Kc5 {[%clk
0:00:15.6]} 43... Ke5 {[%clk 0:00:08]} 44. Nxf5 {[%clk 0:00:11.2]} 44... gxf5
{[%clk 0:00:07.1]} 45. a5 {[%clk 0:00:11.6]} 45... f4 {[%clk 0:00:06.9]} 46. a6
{[%clk 0:00:12.1]} 46... f3 {[%clk 0:00:06.1]} 47. Re7+ {[%clk 0:00:11.7]} 47...
Kf6 {[%clk 0:00:05.1]} 48. Re8 {[%clk 0:00:12.2]} 48... f2 {[%clk 0:00:03.8]}
49. a7 {[%clk 0:00:11.2]} 49... Rxd5+ {[%clk 0:00:01.8]} 50. Kxd5 {[%clk
0:00:10.2]} 50... Kf5 {[%clk 0:00:01.6]} 51. Rf8+ {[%clk 0:00:09.1]} 1-0

[Event "*** Titled Tuesday Blitz"]
[Site "Chess.com"]
[Date "2020.05.26"]
[Round "4"]
[White "Leonid_Starozhilov"]
[Black "StockholmMissile"]
[Result "1-0"]
[WhiteElo "2670"]
[BlackElo "2407"]
[TimeControl "180+1"]
[EndTime "10:39:26 PDT"]
[Termination "Leonid_Starozhilov won by resignation"]

1. e4 {[%clk 0:03:00.9]} 1... e5 {[%clk 0:02:59.6]} 2. Nf3 {[%clk 0:03:01]} 2...
Nc6 {[%clk 0:02:59.6]} 3. Bc4 {[%clk 0:03:01.4]} 3... Bc5 {[%clk 0:02:59.1]} 4.
d3 {[%clk 0:02:58.2]} 4... Nf6 {[%clk 0:02:59]} 5. c3 {[%clk 0:02:58.5]} 5... a6
{[%clk 0:02:59.2]} 6. Bb3 {[%clk 0:02:58.4]} 6... Ba7 {[%clk 0:02:59]} 7. Nbd2
{[%clk 0:02:57.2]} 7... O-O {[%clk 0:02:57.6]} 8. O-O {[%clk 0:02:57.3]} 8... d6
{[%clk 0:02:55.8]} 9. h3 {[%clk 0:02:54.9]} 9... Ne7 {[%clk 0:02:55.6]} 10. Re1
{[%clk 0:02:54.7]} 10... Ng6 {[%clk 0:02:55.9]} 11. Nf1 {[%clk 0:02:55.3]} 11...
h6 {[%clk 0:02:54.9]} 12. Ng3 {[%clk 0:02:55.4]} 12... Be6 {[%clk 0:02:52.5]}
13. Be3 {[%clk 0:02:55.5]} 13... Bxb3 {[%clk 0:02:49.3]} 14. Qxb3 {[%clk
0:02:55.1]} 14... Bxe3 {[%clk 0:02:45.5]} 15. fxe3 {[%clk 0:02:51.1]} 15... Rb8
{[%clk 0:02:45.5]} 16. Nf5 {[%clk 0:02:40.4]} 16... d5 {[%clk 0:02:20.6]} 17.
Nd2 {[%clk 0:02:20.4]} 17... dxe4 {[%clk 0:02:17.6]} 18. Nxe4 {[%clk 0:02:19.7]}
18... Nxe4 {[%clk 0:02:11.3]} 19. dxe4 {[%clk 0:02:19.5]} 19... Nh4 {[%clk
0:01:51.8]} 20. Rf1 {[%clk 0:02:00.8]} 20... Nxf5 {[%clk 0:01:16.1]} 21. Rxf5
{[%clk 0:01:59.4]} 21... Qe7 {[%clk 0:01:16.3]} 22. Raf1 {[%clk 0:01:44]} 22...
c6 {[%clk 0:01:15.5]} 23. a4 {[%clk 0:01:28.3]} 23... Rbd8 {[%clk 0:01:12.8]}
24. Qc4 {[%clk 0:01:21]} 24... Rd7 {[%clk 0:01:04.8]} 25. a5 {[%clk 0:01:18.5]}
25... Kh8 {[%clk 0:01:00.1]} 26. Qe2 {[%clk 0:01:08.3]} 26... f6 {[%clk
0:00:57.4]} 27. Qh5 {[%clk 0:00:56.7]} 27... Qc5 {[%clk 0:00:37.1]} 28. R1f3
{[%clk 0:00:46]} 28... Qxa5 {[%clk 0:00:31.8]} 29. Kh2 {[%clk 0:00:38.9]} 29...
Qc5 {[%clk 0:00:27.6]} 30. Qg6 {[%clk 0:00:27.5]} 30... Qe7 {[%clk 0:00:25.9]}
31. h4 {[%clk 0:00:21.3]} 31... Qe8 {[%clk 0:00:22.8]} 32. Qg4 {[%clk
0:00:15.8]} 32... a5 {[%clk 0:00:22.1]} 33. h5 {[%clk 0:00:15.7]} 33... a4
{[%clk 0:00:21.6]} 34. Rf2 {[%clk 0:00:15.8]} 34... b5 {[%clk 0:00:21.2]} 35.
Qe2 {[%clk 0:00:15.5]} 35... Qe7 {[%clk 0:00:19.1]} 36. Qg4 {[%clk 0:00:15.1]}
36... Rfd8 {[%clk 0:00:18.6]} 37. Qg6 {[%clk 0:00:14.1]} 37... Rd2 {[%clk
0:00:18.2]} 38. R2f3 {[%clk 0:00:09.3]} 38... Rxb2 {[%clk 0:00:16.5]} 39. Rxf6
{[%clk 0:00:06]} 39... gxf6 {[%clk 0:00:06.1]} 40. Qxh6+ {[%clk 0:00:05.3]}
40... Kg8 {[%clk 0:00:06]} 41. Rg3+ {[%clk 0:00:05.5]} 41... Kf7 {[%clk
0:00:06.5]} 42. Rg7+ {[%clk 0:00:04.6]} 42... Ke6 {[%clk 0:00:06.8]} 43. Rxe7+
{[%clk 0:00:04.7]} 43... Kxe7 {[%clk 0:00:07.7]} 44. Qg7+ {[%clk 0:00:05.2]}
44... Ke6 {[%clk 0:00:07.7]} 45. h6 {[%clk 0:00:05.1]} 45... a3 {[%clk
0:00:06.7]} 46. h7 {[%clk 0:00:04.7]} 46... a2 {[%clk 0:00:06.9]} 47. Qg8+
{[%clk 0:00:05.3]} 47... Rxg8 {[%clk 0:00:03]} 48. hxg8=Q+ {[%clk 0:00:06.2]}
48... Kd6 {[%clk 0:00:03.9]} 49. Qa8 {[%clk 0:00:05.3]} 49... Kc5 {[%clk
0:00:03.9]} 50. Qa3+ {[%clk 0:00:05.5]} 50... b4 {[%clk 0:00:03.3]} 51. Qxb2
{[%clk 0:00:05.9]} 1-0

[Event "*** Titled Tuesday Blitz"]
[Site "Chess.com"]
[Date "2020.05.26"]
[Round "4"]
[White "TrenerChos"]
[Black "kagg1125"]
[Result "0-1"]
[WhiteElo "2372"]
[BlackElo "2598"]
[TimeControl "180+1"]
[EndTime "10:39:26 PDT"]
[Termination "kagg1125 won on time"]

1. e4 {[%clk 0:03:00.3]} 1... e5 {[%clk 0:02:55]} 2. Nf3 {[%clk 0:03:00.1]} 2...
Nc6 {[%clk 0:02:54.9]} 3. Bb5 {[%clk 0:02:59.5]} 3... a6 {[%clk 0:02:53.7]} 4.
Ba4 {[%clk 0:02:59.2]} 4... Nf6 {[%clk 0:02:53.9]} 5. O-O {[%clk 0:02:58.6]}
5... Bc5 {[%clk 0:02:54.3]} 6. Re1 {[%clk 0:02:57.4]} 6... b5 {[%clk 0:02:54.1]}
7. Bb3 {[%clk 0:02:57.2]} 7... d6 {[%clk 0:02:54.3]} 8. c3 {[%clk 0:02:57.1]}
8... O-O {[%clk 0:02:54]} 9. h3 {[%clk 0:02:56.9]} 9... Bb6 {[%clk 0:02:47.5]}
10. d3 {[%clk 0:02:54.3]} 10... h6 {[%clk 0:02:47.1]} 11. Nbd2 {[%clk
0:02:53.6]} 11... Bb7 {[%clk 0:02:46.8]} 12. Nf1 {[%clk 0:02:52.5]} 12... Ne7
{[%clk 0:02:47.4]} 13. Be3 {[%clk 0:02:47.1]} 13... c5 {[%clk 0:02:44.9]} 14. a4
{[%clk 0:02:43.5]} 14... Ng6 {[%clk 0:02:43.2]} 15. Ng3 {[%clk 0:02:39]} 15...
d5 {[%clk 0:02:35.6]} 16. exd5 {[%clk 0:02:35.5]} 16... Bxd5 {[%clk 0:02:34.7]}
17. Nf5 {[%clk 0:02:34.1]} 17... Bxb3 {[%clk 0:02:27.4]} 18. Qxb3 {[%clk
0:02:33.2]} 18... Qxd3 {[%clk 0:02:27.5]} 19. Ng3 {[%clk 0:02:27.4]} 19... c4
{[%clk 0:01:44.8]} 20. Qa2 {[%clk 0:02:27]} 20... Bxe3 {[%clk 0:01:41.3]} 21.
Rxe3 {[%clk 0:02:26.8]} 21... Qd5 {[%clk 0:01:39.2]} 22. Nf5 {[%clk 0:02:24.6]}
22... Rfe8 {[%clk 0:01:32.7]} 23. Ree1 {[%clk 0:02:13.5]} 23... Nf4 {[%clk
0:01:25.5]} 24. axb5 {[%clk 0:02:11.6]} 24... Nxh3+ {[%clk 0:01:17.2]} 25. gxh3
{[%clk 0:01:58.6]} 25... Qxf3 {[%clk 0:01:16.5]} 26. Ne3 {[%clk 0:01:41.9]}
26... axb5 {[%clk 0:01:13.3]} 27. Qb1 {[%clk 0:01:40.1]} 27... Rxa1 {[%clk
0:01:10.7]} 28. Qxa1 {[%clk 0:01:40.1]} 28... Ne4 {[%clk 0:01:08.9]} 29. Ng4
{[%clk 0:01:34.7]} 29... Ng5 {[%clk 0:01:05.6]} 30. Re3 {[%clk 0:01:30.8]} 30...
Nxh3+ {[%clk 0:01:02.5]} 31. Kh2 {[%clk 0:01:31.1]} 31... Qxg4 {[%clk
0:01:02.4]} 32. Rxh3 {[%clk 0:01:31.1]} 32... Re6 {[%clk 0:00:58.7]} 33. Qa8+
{[%clk 0:01:29.9]} 33... Kh7 {[%clk 0:00:58.7]} 34. Rg3 {[%clk 0:01:29.5]} 34...
Qh4+ {[%clk 0:00:57.7]} 35. Kg2 {[%clk 0:01:29.5]} 35... e4 {[%clk 0:00:38.1]}
36. Qd5 {[%clk 0:01:22]} 36... Rg6 {[%clk 0:00:21.3]} 37. Qxf7 {[%clk
0:01:16.6]} 37... Rxg3+ {[%clk 0:00:19.5]} 38. fxg3 {[%clk 0:01:05.8]} 38... Qf6
{[%clk 0:00:20.4]} 39. Qd5 {[%clk 0:01:05]} 39... e3 {[%clk 0:00:20.5]} 40. Qe4+
{[%clk 0:01:04.2]} 40... Qg6 {[%clk 0:00:20.7]} 41. Qxe3 {[%clk 0:01:05.1]}
41... Qc2+ {[%clk 0:00:20.5]} 42. Kh3 {[%clk 0:01:05.2]} 42... Qf5+ {[%clk
0:00:20.8]} 43. Kg2 {[%clk 0:01:05.2]} 43... h5 {[%clk 0:00:16.4]} 0-1

[Event "*** Titled Tuesday Blitz"]
[Site "Chess.com"]
[Date "2020.05.26"]
[Round "4"]
[White "Meri-Arabidze"]
[Black "gliglu"]
[Result "0-1"]
[WhiteElo "2575"]
[BlackElo "2384"]
[TimeControl "180+1"]
[EndTime "10:39:26 PDT"]
[Termination "gliglu won on time"]

1. d4 {[%clk 0:03:00.9]} 1... g6 {[%clk 0:02:59.6]} 2. c4 {[%clk 0:03:01.2]}
2... Bg7 {[%clk 0:02:59.4]} 3. g3 {[%clk 0:03:01.6]} 3... d6 {[%clk 0:02:59.2]}
4. Bg2 {[%clk 0:03:01.6]} 4... Nf6 {[%clk 0:02:59.2]} 5. Nf3 {[%clk 0:03:01.9]}
5... O-O {[%clk 0:02:59.2]} 6. O-O {[%clk 0:03:02]} 6... c6 {[%clk 0:02:59.3]}
7. Nc3 {[%clk 0:03:01.6]} 7... a6 {[%clk 0:02:59.4]} 8. e4 {[%clk 0:02:59.5]}
8... b5 {[%clk 0:02:57.3]} 9. e5 {[%clk 0:02:59.4]} 9... Nfd7 {[%clk 0:02:56.1]}
10. cxb5 {[%clk 0:02:53.1]} 10... axb5 {[%clk 0:02:55.8]} 11. e6 {[%clk
0:02:47.5]} 11... fxe6 {[%clk 0:02:55]} 12. Ng5 {[%clk 0:02:46.9]} 12... Nb6
{[%clk 0:02:42.5]} 13. Qe2 {[%clk 0:02:33.2]} 13... e5 {[%clk 0:02:20.3]} 14.
dxe5 {[%clk 0:02:24.9]} 14... Bxe5 {[%clk 0:02:19]} 15. Be3 {[%clk 0:02:08.1]}
15... b4 {[%clk 0:01:54.8]} 16. Nce4 {[%clk 0:02:04.8]} 16... Nd5 {[%clk
0:01:51.7]} 17. Bc1 {[%clk 0:01:29.2]} 17... Na6 {[%clk 0:01:47.1]} 18. f4
{[%clk 0:01:17.6]} 18... Bd4+ {[%clk 0:01:45.3]} 19. Kh1 {[%clk 0:01:18.1]}
19... Nac7 {[%clk 0:01:45.4]} 20. Rd1 {[%clk 0:01:16.7]} 20... Bg7 {[%clk
0:01:44.2]} 21. Qc2 {[%clk 0:01:05.7]} 21... Bd7 {[%clk 0:01:42.9]} 22. Bd2
{[%clk 0:00:50.7]} 22... e5 {[%clk 0:01:40.8]} 23. fxe5 {[%clk 0:00:46.6]} 23...
dxe5 {[%clk 0:01:39.7]} 24. Nxh7 {[%clk 0:00:39.6]} 24... Kxh7 {[%clk
0:01:29.7]} 25. Ng5+ {[%clk 0:00:39.7]} 25... Kg8 {[%clk 0:01:29.8]} 26. Qxg6
{[%clk 0:00:39.7]} 26... Bf5 {[%clk 0:01:29.7]} 27. Qh5 {[%clk 0:00:37.1]} 27...
Qe8 {[%clk 0:01:27.3]} 28. Qh4 {[%clk 0:00:33.5]} 28... Qg6 {[%clk 0:01:15.9]}
29. Rf1 {[%clk 0:00:31]} 29... Rae8 {[%clk 0:01:10.5]} 30. Rxf5 {[%clk
0:00:26.2]} 30... Rxf5 {[%clk 0:01:10.2]} 31. Be4 {[%clk 0:00:26.3]} 31... Bf6
{[%clk 0:01:06.1]} 32. g4 {[%clk 0:00:12.6]} 32... Bxg5 {[%clk 0:01:05.4]} 33.
Bxf5 {[%clk 0:00:12.6]} 33... Bxh4 {[%clk 0:00:54.1]} 34. Bxg6 {[%clk
0:00:12.4]} 34... Rf8 {[%clk 0:00:53.4]} 35. Bf5 {[%clk 0:00:12.6]} 35... Kg7
{[%clk 0:00:45.2]} 36. Rc1 {[%clk 0:00:11.4]} 36... Rf6 {[%clk 0:00:37.5]} 37.
Kg2 {[%clk 0:00:10.9]} 37... Rd6 {[%clk 0:00:34.3]} 38. Kh3 {[%clk 0:00:06.9]}
38... Bf6 {[%clk 0:00:33]} 39. g5 {[%clk 0:00:06.5]} 39... Be7 {[%clk 0:00:33]}
40. Kg4 {[%clk 0:00:06.7]} 40... Ne6 {[%clk 0:00:25.1]} 41. h4 {[%clk
0:00:06.2]} 41... Nd4 {[%clk 0:00:24.6]} 42. Be4 {[%clk 0:00:04.9]} 42... Ne2
{[%clk 0:00:20.7]} 43. h5 {[%clk 0:00:04.7]} 43... Nxc1 {[%clk 0:00:20.1]} 44.
h6+ {[%clk 0:00:03.9]} 44... Kh8 {[%clk 0:00:19.8]} 45. Bxc1 {[%clk 0:00:04.1]}
45... Nf4 {[%clk 0:00:17.5]} 46. Bxf4 {[%clk 0:00:03.1]} 46... exf4 {[%clk
0:00:17.4]} 47. g6 {[%clk 0:00:03.6]} 47... Bf6 {[%clk 0:00:16.4]} 48. Kxf4
{[%clk 0:00:02.6]} 48... Bxb2 {[%clk 0:00:15.9]} 49. Kf5 {[%clk 0:00:02.8]}
49... c5 {[%clk 0:00:15.7]} 50. Kg5 {[%clk 0:00:02.6]} 50... c4 {[%clk
0:00:15.4]} 51. Bf5 {[%clk 0:00:01.1]} 51... Bd4 {[%clk 0:00:14.5]} 0-1